[Event "Late-Titled-Tuesday-Blitz-April-23-2024"]
[Site "Chess.com"]
[Date "2024.04.23"]
[Round "2"]
[White "Binary010"]
[Black "MKlose11"]
[Result "1-0"]
[WhiteElo "2844"]
[BlackElo "2597"]
[TimeControl "180+1"]
[EndTime "14:19:30 PDT"]
[Termination "Binary010 won by resignation"]

1. e4 {[%clk 0:03:00.9]} 1... e6 {[%clk 0:02:59.3]} 2. d4 {[%clk 0:03:00.8]}
2... d5 {[%clk 0:03:00.2]} 3. Nc3 {[%clk 0:03:00.8]} 3... Bb4 {[%clk 0:02:59.3]}
4. exd5 {[%clk 0:02:58]} 4... exd5 {[%clk 0:02:58.7]} 5. Bd3 {[%clk 0:02:58.2]}
5... Nc6 {[%clk 0:02:52.8]} 6. Nf3 {[%clk 0:02:58.1]} 6... Nce7 {[%clk
0:02:49.6]} 7. O-O {[%clk 0:02:54.3]} 7... Nf6 {[%clk 0:02:47.5]} 8. Bg5 {[%clk
0:02:50]} 8... Bxc3 {[%clk 0:02:47.2]} 9. bxc3 {[%clk 0:02:49.3]} 9... Ne4
{[%clk 0:02:47]} 10. Bxe7 {[%clk 0:02:28.9]} 10... Qxe7 {[%clk 0:02:45.5]} 11.
c4 {[%clk 0:02:29.6]} 11... O-O {[%clk 0:02:33.1]} 12. cxd5 {[%clk 0:02:25.3]}
12... Nc3 {[%clk 0:02:32.6]} 13. Qd2 {[%clk 0:02:19.2]} 13... Nxd5 {[%clk
0:02:32.3]} 14. c4 {[%clk 0:02:18.6]} 14... Nf6 {[%clk 0:02:29.9]} 15. Rfe1
{[%clk 0:02:17.2]} 15... Qd6 {[%clk 0:02:27.1]} 16. h3 {[%clk 0:02:16.8]} 16...
b6 {[%clk 0:02:26.3]} 17. Nh4 {[%clk 0:01:24.6]} 17... Rd8 {[%clk 0:02:16.7]}
18. Rad1 {[%clk 0:01:19.8]} 18... Bd7 {[%clk 0:02:02.1]} 19. Nf5 {[%clk
0:01:10]} 19... Bxf5 {[%clk 0:02:00.9]} 20. Bxf5 {[%clk 0:01:10.9]} 20... Re8
{[%clk 0:01:58]} 21. Bc2 {[%clk 0:01:07.1]} 21... Rxe1+ {[%clk 0:01:54.8]} 22.
Rxe1 {[%clk 0:01:08]} 22... Rd8 {[%clk 0:01:54.9]} 23. d5 {[%clk 0:01:07.9]}
23... Re8 {[%clk 0:01:47.6]} 24. Rxe8+ {[%clk 0:01:04.6]} 24... Nxe8 {[%clk
0:01:48.5]} 25. Ba4 {[%clk 0:01:04.1]} 25... Nf6 {[%clk 0:01:47.7]} 26. Bc6
{[%clk 0:01:03.7]} 26... Qe5 {[%clk 0:01:39.2]} 27. g3 {[%clk 0:00:57.7]} 27...
g6 {[%clk 0:01:25.8]} 28. Qd3 {[%clk 0:00:53]} 28... Qa1+ {[%clk 0:01:16.8]} 29.
Kg2 {[%clk 0:00:53]} 29... Qxa2 {[%clk 0:01:15.9]} 30. Qd4 {[%clk 0:00:49.9]}
30... Kg7 {[%clk 0:00:55.3]} 31. g4 {[%clk 0:00:38.1]} 31... h6 {[%clk
0:00:43.3]} 32. Qe5 {[%clk 0:00:10.8]} 32... Qxc4 {[%clk 0:00:38.9]} 33. Qxc7
{[%clk 0:00:09.2]} 33... Qe4+ {[%clk 0:00:38.6]} 34. Kg3 {[%clk 0:00:08.1]}
34... Nxd5 {[%clk 0:00:29.4]} 35. Qd6 {[%clk 0:00:08.2]} 35... Qd3+ {[%clk
0:00:22.2]} 36. f3 {[%clk 0:00:08.4]} 36... Nb4 {[%clk 0:00:17.3]} 37. Qxb4
{[%clk 0:00:07.3]} 37... Qd1 {[%clk 0:00:07.7]} 38. Qc3+ {[%clk 0:00:07.5]}
38... Kg8 {[%clk 0:00:07.4]} 39. Kf2 {[%clk 0:00:06.1]} 39... Qh1 {[%clk
0:00:05.6]} 40. Bd5 {[%clk 0:00:04.4]} 40... Qh2+ {[%clk 0:00:05.6]} 41. Ke3
{[%clk 0:00:04.1]} 41... Qg1+ {[%clk 0:00:06]} 42. Ke2 {[%clk 0:00:04.1]} 42...
Qg2+ {[%clk 0:00:06]} 43. Kd3 {[%clk 0:00:04.6]} 43... Qf1+ {[%clk 0:00:06.1]}
44. Ke3 {[%clk 0:00:03.9]} 44... Qg1+ {[%clk 0:00:06]} 45. Kd3 {[%clk
0:00:03.3]} 45... Qf1+ {[%clk 0:00:06.2]} 46. Kc2 {[%clk 0:00:03.2]} 46... Qe2+
{[%clk 0:00:05.3]} 47. Qd2 {[%clk 0:00:03.4]} 47... Qxd2+ {[%clk 0:00:02.5]} 48.
Kxd2 {[%clk 0:00:03.3]} 48... Kg7 {[%clk 0:00:03]} 49. f4 {[%clk 0:00:02.9]}
49... Kf6 {[%clk 0:00:03.4]} 50. Ke3 {[%clk 0:00:03.6]} 50... Ke7 {[%clk
0:00:03.6]} 51. Ke4 {[%clk 0:00:03.7]} 51... f6 {[%clk 0:00:04.1]} 52. Kd4
{[%clk 0:00:03.6]} 52... Kd6 {[%clk 0:00:03.9]} 53. Bf7 {[%clk 0:00:04.2]} 53...
g5 {[%clk 0:00:04.6]} 54. fxg5 {[%clk 0:00:04.2]} 54... hxg5 {[%clk 0:00:04.4]}
55. Ke4 {[%clk 0:00:04.8]} 55... b5 {[%clk 0:00:04.4]} 56. Kf5 {[%clk
0:00:05.2]} 56... Ke7 {[%clk 0:00:05]} 57. Bd5 {[%clk 0:00:04.5]} 57... a5
{[%clk 0:00:05.1]} 58. Bc6 {[%clk 0:00:04.5]} 58... b4 {[%clk 0:00:05.6]} 59.
Ba4 {[%clk 0:00:04.9]} 59... Kf7 {[%clk 0:00:06.2]} 60. Bb3+ {[%clk 0:00:05.1]}
60... Kg7 {[%clk 0:00:06.6]} 61. Ba4 {[%clk 0:00:04.7]} 61... Kf7 {[%clk
0:00:06.6]} 62. Bc2 {[%clk 0:00:04.9]} 62... Kg7 {[%clk 0:00:07.5]} 63. Ke6
{[%clk 0:00:04.7]} 63... Kh6 {[%clk 0:00:03.8]} 64. Kxf6 {[%clk 0:00:04.5]}
64... a4 {[%clk 0:00:03.3]} 65. Bxa4 {[%clk 0:00:04.5]} 65... b3 {[%clk
0:00:03.8]} 66. Bxb3 {[%clk 0:00:04.8]} 66... Kh7 {[%clk 0:00:03.5]} 67. Kxg5
{[%clk 0:00:05.2]} 1-0

[Event "Late-Titled-Tuesday-Blitz-April-23-2024"]
[Site "Chess.com"]
[Date "2024.04.23"]
[Round "2"]
[White "AungTZ"]
[Black "chessisveryfun1264"]
[Result "1-0"]
[WhiteElo "2046"]
[BlackElo "2686"]
[TimeControl "180+1"]
[EndTime "14:19:31 PDT"]
[Termination "AungTZ won by resignation"]

1. e4 {[%clk 0:02:57.3]} 1... e6 {[%clk 0:03:00.8]} 2. d4 {[%clk 0:02:57.3]}
2... d5 {[%clk 0:03:01.5]} 3. Nc3 {[%clk 0:02:57.3]} 3... Bb4 {[%clk 0:03:01.5]}
4. e5 {[%clk 0:02:53.4]} 4... Ne7 {[%clk 0:03:00.8]} 5. Nf3 {[%clk 0:02:44.4]}
5... b6 {[%clk 0:02:59.5]} 6. a3 {[%clk 0:02:44.3]} 6... Bxc3+ {[%clk
0:02:55.6]} 7. bxc3 {[%clk 0:02:44.1]} 7... c5 {[%clk 0:02:56.5]} 8. a4 {[%clk
0:02:39.5]} 8... Ba6 {[%clk 0:02:55.3]} 9. Bd3 {[%clk 0:02:36.3]} 9... Bxd3
{[%clk 0:02:52.5]} 10. Qxd3 {[%clk 0:02:33.7]} 10... Nd7 {[%clk 0:02:52.3]} 11.
O-O {[%clk 0:02:32.9]} 11... O-O {[%clk 0:02:43.2]} 12. a5 {[%clk 0:02:31.2]}
12... Ng6 {[%clk 0:02:30.3]} 13. Re1 {[%clk 0:02:18.5]} 13... bxa5 {[%clk
0:02:28]} 14. Qb5 {[%clk 0:02:01.8]} 14... cxd4 {[%clk 0:02:23.4]} 15. cxd4
{[%clk 0:01:55.4]} 15... Qc7 {[%clk 0:02:23.8]} 16. Rxa5 {[%clk 0:01:38.4]}
16... Nb6 {[%clk 0:02:18.8]} 17. Ba3 {[%clk 0:01:20.6]} 17... Rfb8 {[%clk
0:02:17.9]} 18. Qc5 {[%clk 0:01:11.2]} 18... Qxc5 {[%clk 0:02:09.3]} 19. Bxc5
{[%clk 0:01:09.5]} 19... Nc4 {[%clk 0:02:05.9]} 20. Ra2 {[%clk 0:01:08.8]} 20...
a5 {[%clk 0:02:04.1]} 21. g3 {[%clk 0:01:07.7]} 21... a4 {[%clk 0:02:03.7]} 22.
Rea1 {[%clk 0:01:04.9]} 22... h6 {[%clk 0:01:51.1]} 23. Rxa4 {[%clk 0:00:58.3]}
23... Rxa4 {[%clk 0:01:52]} 24. Rxa4 {[%clk 0:00:58.2]} 24... Rb2 {[%clk
0:01:51.9]} 25. h4 {[%clk 0:00:51.4]} 25... Rxc2 {[%clk 0:01:38]} 26. h5 {[%clk
0:00:46.4]} 26... Nh8 {[%clk 0:01:32.5]} 27. Ra8+ {[%clk 0:00:37.5]} 27... Kh7
{[%clk 0:01:32.1]} 28. g4 {[%clk 0:00:36.5]} 28... g6 {[%clk 0:01:11.2]} 29. Be7
{[%clk 0:00:31.3]} 29... gxh5 {[%clk 0:01:08]} 30. gxh5 {[%clk 0:00:29.5]} 30...
Nb6 {[%clk 0:01:02.3]} 31. Rb8 {[%clk 0:00:24.2]} 31... Nc8 {[%clk 0:01:01.4]}
32. Bf6 {[%clk 0:00:23.2]} 32... Ng6 {[%clk 0:00:54.3]} 33. hxg6+ {[%clk
0:00:23]} 33... Kxg6 {[%clk 0:00:55.2]} 34. Kg2 {[%clk 0:00:22.6]} 34... Kf5
{[%clk 0:00:54.8]} 35. Kg3 {[%clk 0:00:22.1]} 35... Rc3 {[%clk 0:00:52.6]} 36.
Kg2 {[%clk 0:00:17.8]} 36... h5 {[%clk 0:00:50.3]} 37. Nh4+ {[%clk 0:00:14.2]}
37... Ke4 {[%clk 0:00:50.4]} 38. Rb4 {[%clk 0:00:13.9]} 38... Na7 {[%clk
0:00:50.2]} 39. f3+ {[%clk 0:00:12.7]} 39... Ke3 {[%clk 0:00:48]} 40. Bg5+
{[%clk 0:00:12.8]} 40... Kd3 {[%clk 0:00:47.3]} 41. Kg3 {[%clk 0:00:11.7]} 41...
Nc6 {[%clk 0:00:47.6]} 42. Ng2 {[%clk 0:00:10.9]} 42... Ke2 {[%clk 0:00:39.3]}
43. Nf4+ {[%clk 0:00:10.7]} 43... Kd1 {[%clk 0:00:36.6]} 44. Rb2 {[%clk
0:00:10.5]} 44... Nxd4 {[%clk 0:00:35]} 45. Ng2 {[%clk 0:00:10.1]} 45... Rxf3+
{[%clk 0:00:31.1]} 46. Kh2 {[%clk 0:00:09.6]} 46... Rf5 {[%clk 0:00:24]} 47. Bf4
{[%clk 0:00:07]} 47... Nf3+ {[%clk 0:00:15.2]} 48. Kg3 {[%clk 0:00:07.1]} 48...
Nxe5 {[%clk 0:00:14.8]} 49. Rd2+ {[%clk 0:00:05.8]} 49... Kc1 {[%clk 0:00:13.4]}
50. Re2+ {[%clk 0:00:05.1]} 50... Kb1 {[%clk 0:00:12.4]} 51. Ne3 {[%clk
0:00:05]} 51... Rf6 {[%clk 0:00:05.4]} 52. Bxe5 {[%clk 0:00:04.4]} 52... Rg6+
{[%clk 0:00:06.1]} 53. Kf2 {[%clk 0:00:04.3]} 53... Rg5 {[%clk 0:00:06.1]} 54.
Ke1 {[%clk 0:00:04.9]} 54... Rxe5 {[%clk 0:00:06]} 55. Kd2 {[%clk 0:00:05.5]}
55... d4 {[%clk 0:00:06]} 56. Re1+ {[%clk 0:00:05.5]} 56... Ka2 {[%clk
0:00:05.6]} 57. Nc2 {[%clk 0:00:04.9]} 57... Kb3 {[%clk 0:00:05.3]} 58. Rxe5
{[%clk 0:00:05.2]} 58... Kc4 {[%clk 0:00:05.5]} 59. Re4 {[%clk 0:00:05.6]} 59...
e5 {[%clk 0:00:05.2]} 60. Rxe5 {[%clk 0:00:06.2]} 60... h4 {[%clk 0:00:04.8]}
61. Rh5 {[%clk 0:00:07.1]} 61... h3 {[%clk 0:00:05.7]} 62. Rxh3 {[%clk
0:00:07.3]} 1-0

[Event "Late-Titled-Tuesday-Blitz-April-23-2024"]
[Site "Chess.com"]
[Date "2024.04.23"]
[Round "2"]
[White "kingofthenil"]
[Black "wild3000"]
[Result "1-0"]
[WhiteElo "2788"]
[BlackElo "2432"]
[TimeControl "180+1"]
[EndTime "14:19:33 PDT"]
[Termination "kingofthenil won on time"]

1. d4 {[%clk 0:03:00.9]} 1... d5 {[%clk 0:02:30.9]} 2. c4 {[%clk 0:02:57.4]}
2... c6 {[%clk 0:02:30.8]} 3. Bf4 {[%clk 0:02:53.9]} 3... Nf6 {[%clk 0:02:30.7]}
4. e3 {[%clk 0:02:53.6]} 4... g6 {[%clk 0:02:30.6]} 5. Nc3 {[%clk 0:02:50.6]}
5... Bg7 {[%clk 0:02:30.6]} 6. Nf3 {[%clk 0:02:47.7]} 6... O-O {[%clk
0:02:30.4]} 7. Be2 {[%clk 0:02:47.3]} 7... dxc4 {[%clk 0:02:29.9]} 8. Bxc4
{[%clk 0:02:46.6]} 8... Nbd7 {[%clk 0:02:30.5]} 9. h3 {[%clk 0:02:43]} 9... b5
{[%clk 0:02:25.3]} 10. Bd3 {[%clk 0:02:40.8]} 10... a6 {[%clk 0:02:25.1]} 11. a4
{[%clk 0:02:35.6]} 11... Bb7 {[%clk 0:02:23.5]} 12. O-O {[%clk 0:02:35.4]} 12...
b4 {[%clk 0:02:02.5]} 13. Ne4 {[%clk 0:02:26.4]} 13... Nxe4 {[%clk 0:01:56.6]}
14. Bxe4 {[%clk 0:02:27.3]} 14... Nf6 {[%clk 0:01:56.9]} 15. Bc2 {[%clk
0:02:13.9]} 15... Nd5 {[%clk 0:01:53.1]} 16. Be5 {[%clk 0:02:11]} 16... f6
{[%clk 0:01:44.5]} 17. Bg3 {[%clk 0:02:03.6]} 17... a5 {[%clk 0:01:44.6]} 18.
Bb3 {[%clk 0:01:57.3]} 18... Kh8 {[%clk 0:01:44]} 19. Rc1 {[%clk 0:01:50.6]}
19... Qd7 {[%clk 0:01:28.9]} 20. Nd2 {[%clk 0:01:49]} 20... e5 {[%clk
0:01:27.7]} 21. Ne4 {[%clk 0:01:42.3]} 21... exd4 {[%clk 0:01:18.7]} 22. Nc5
{[%clk 0:01:42.4]} 22... Qe7 {[%clk 0:01:18.4]} 23. exd4 {[%clk 0:01:40]} 23...
Bc8 {[%clk 0:00:58.4]} 24. Re1 {[%clk 0:01:24.4]} 24... Qa7 {[%clk 0:00:45.1]}
25. Qf3 {[%clk 0:00:50.1]} 25... Bf5 {[%clk 0:00:33.8]} 26. Ne6 {[%clk
0:00:37.6]} 26... Rfc8 {[%clk 0:00:25.9]} 27. Nc5 {[%clk 0:00:24.1]} 27... Re8
{[%clk 0:00:22]} 28. Kh2 {[%clk 0:00:18.9]} 28... Qf7 {[%clk 0:00:18.7]} 29.
Rcd1 {[%clk 0:00:09.7]} 29... h5 {[%clk 0:00:18.3]} 30. Kg1 {[%clk 0:00:06.7]}
30... Rxe1+ {[%clk 0:00:17.5]} 31. Rxe1 {[%clk 0:00:06.9]} 31... Re8 {[%clk
0:00:18]} 32. Rxe8+ {[%clk 0:00:06.7]} 32... Qxe8 {[%clk 0:00:18.9]} 33. Bxd5
{[%clk 0:00:07.4]} 33... cxd5 {[%clk 0:00:18.7]} 34. Qxd5 {[%clk 0:00:08.3]}
34... Qe1+ {[%clk 0:00:18.4]} 35. Kh2 {[%clk 0:00:08.7]} 35... Qe2 {[%clk
0:00:14.1]} 36. b3 {[%clk 0:00:07.7]} 36... Kh7 {[%clk 0:00:10.3]} 37. Qb7
{[%clk 0:00:06.7]} 37... Kh6 {[%clk 0:00:09]} 38. Qf3 {[%clk 0:00:04.7]} 38...
Qxf3 {[%clk 0:00:08.7]} 39. gxf3 {[%clk 0:00:05.6]} 39... Bf8 {[%clk 0:00:08.3]}
40. Nb7 {[%clk 0:00:04.4]} 40... Bc2 {[%clk 0:00:07.8]} 41. Nxa5 {[%clk
0:00:04.8]} 41... g5 {[%clk 0:00:07.3]} 42. Bc7 {[%clk 0:00:04.9]} 42... h4
{[%clk 0:00:06.1]} 43. Bb6 {[%clk 0:00:05.2]} 43... Bd6+ {[%clk 0:00:04.7]} 44.
Kg2 {[%clk 0:00:05.9]} 44... Kg6 {[%clk 0:00:04]} 45. Bc5 {[%clk 0:00:05.3]}
45... Bc7 {[%clk 0:00:04.2]} 46. Nc6 {[%clk 0:00:05.7]} 46... Bxb3 {[%clk
0:00:03.9]} 47. a5 {[%clk 0:00:06.2]} 47... Bd5 {[%clk 0:00:03.2]} 48. Ne7+
{[%clk 0:00:06.3]} 48... Kf7 {[%clk 0:00:02.4]} 49. Nxd5 {[%clk 0:00:07.2]}
49... Bxa5 {[%clk 0:00:02.8]} 50. Nxb4 {[%clk 0:00:07.7]} 50... Bc7 {[%clk
0:00:02.9]} 51. Nd5 {[%clk 0:00:07.1]} 51... Bd8 {[%clk 0:00:03]} 52. Ne3 {[%clk
0:00:03.3]} 52... Ke6 {[%clk 0:00:03.2]} 53. Kf1 {[%clk 0:00:02.9]} 53... f5
{[%clk 0:00:03.5]} 54. Ke2 {[%clk 0:00:02.8]} 54... Ba5 {[%clk 0:00:03.5]} 55.
Ng2 {[%clk 0:00:03.7]} 55... Kf6 {[%clk 0:00:03.3]} 56. Ba7 {[%clk 0:00:03.5]}
56... Ke6 {[%clk 0:00:03.4]} 57. Bb8 {[%clk 0:00:03.9]} 57... Kd5 {[%clk
0:00:03.5]} 58. Be5 {[%clk 0:00:04.8]} 58... Bd8 {[%clk 0:00:02.7]} 59. Ne3+
{[%clk 0:00:05.3]} 59... Ke6 {[%clk 0:00:02.7]} 60. f4 {[%clk 0:00:06.2]} 1-0

[Event "Late-Titled-Tuesday-Blitz-April-23-2024"]
[Site "Chess.com"]
[Date "2024.04.23"]
[Round "2"]
[White "attack2mateU"]
[Black "Jooonaaas1996"]
[Result "1/2-1/2"]
[WhiteElo "2712"]
[BlackElo "2431"]
[TimeControl "180+1"]
[EndTime "14:19:48 PDT"]
[Termination "Game drawn - insufficient material"]

1. e4 {[%clk 0:03:00.9]} 1... e5 {[%clk 0:02:57.1]} 2. Nf3 {[%clk 0:03:01.3]}
2... Nc6 {[%clk 0:02:57.1]} 3. Bc4 {[%clk 0:03:01.6]} 3... Bc5 {[%clk
0:02:53.1]} 4. c3 {[%clk 0:03:01.4]} 4... Nf6 {[%clk 0:02:52.4]} 5. d3 {[%clk
0:03:01.3]} 5... O-O {[%clk 0:02:48]} 6. O-O {[%clk 0:03:01.8]} 6... d5 {[%clk
0:02:47.6]} 7. exd5 {[%clk 0:03:02.7]} 7... Nxd5 {[%clk 0:02:47.9]} 8. Re1
{[%clk 0:03:03.2]} 8... Nb6 {[%clk 0:02:44]} 9. Bb3 {[%clk 0:03:02]} 9... Bg4
{[%clk 0:02:42.3]} 10. h3 {[%clk 0:03:02]} 10... Bh5 {[%clk 0:02:42.4]} 11. Nbd2
{[%clk 0:03:02.3]} 11... Bg6 {[%clk 0:02:35.8]} 12. Nxe5 {[%clk 0:02:50.1]}
12... Nxe5 {[%clk 0:02:29.2]} 13. Rxe5 {[%clk 0:02:51]} 13... Nd7 {[%clk
0:02:11.9]} 14. Re1 {[%clk 0:02:29.1]} 14... Bxd3 {[%clk 0:02:10.2]} 15. Ne4
{[%clk 0:02:29.3]} 15... Bxe4 {[%clk 0:02:04]} 16. Rxe4 {[%clk 0:02:30.2]} 16...
Nf6 {[%clk 0:02:04]} 17. Qxd8 {[%clk 0:02:26.3]} 17... Raxd8 {[%clk 0:02:04.9]}
18. Re1 {[%clk 0:02:26.7]} 18... Rfe8 {[%clk 0:02:00.5]} 19. Bf4 {[%clk
0:02:24.9]} 19... Ne4 {[%clk 0:01:51.1]} 20. Be3 {[%clk 0:02:19.5]} 20... Bxe3
{[%clk 0:01:45]} 21. Rxe3 {[%clk 0:02:20.4]} 21... Nd6 {[%clk 0:01:34.4]} 22.
Ree1 {[%clk 0:01:43.5]} 22... Rxe1+ {[%clk 0:01:32.5]} 23. Rxe1 {[%clk
0:01:44.4]} 23... Re8 {[%clk 0:01:32.7]} 24. Kf1 {[%clk 0:01:29.3]} 24... Rxe1+
{[%clk 0:01:31.3]} 25. Kxe1 {[%clk 0:01:30.2]} 25... Kf8 {[%clk 0:01:31.5]} 26.
Ke2 {[%clk 0:01:30.1]} 26... Ke7 {[%clk 0:01:32]} 27. Ke3 {[%clk 0:01:29.8]}
27... b6 {[%clk 0:01:29.3]} 28. Kd4 {[%clk 0:01:28.9]} 28... f6 {[%clk
0:01:16.8]} 29. Kd5 {[%clk 0:01:26.4]} 29... Kd7 {[%clk 0:01:13.1]} 30. Ba4+
{[%clk 0:01:26.4]} 30... b5 {[%clk 0:01:06.7]} 31. Bc2 {[%clk 0:01:26.7]} 31...
h6 {[%clk 0:01:03.1]} 32. Kc5 {[%clk 0:01:24.5]} 32... c6 {[%clk 0:00:57.7]} 33.
b4 {[%clk 0:01:10]} 33... Nb7+ {[%clk 0:00:47.5]} 34. Kd4 {[%clk 0:01:10.2]}
34... Kd6 {[%clk 0:00:48.1]} 35. c4 {[%clk 0:01:04.4]} 35... bxc4 {[%clk
0:00:33.4]} 36. Kxc4 {[%clk 0:01:05.3]} 36... Kc7 {[%clk 0:00:20.3]} 37. f4
{[%clk 0:01:03.9]} 37... Nd6+ {[%clk 0:00:15.8]} 38. Kc5 {[%clk 0:01:04.1]}
38... Nb7+ {[%clk 0:00:15.6]} 39. Kd4 {[%clk 0:01:04.6]} 39... Kd6 {[%clk
0:00:15.9]} 40. Ke4 {[%clk 0:01:02.3]} 40... Ke6 {[%clk 0:00:12.9]} 41. Bb3+
{[%clk 0:01:02.1]} 41... Ke7 {[%clk 0:00:12.7]} 42. a4 {[%clk 0:00:49.4]} 42...
c5 {[%clk 0:00:11.2]} 43. b5 {[%clk 0:00:48.3]} 43... Kd6 {[%clk 0:00:10.9]} 44.
Kf5 {[%clk 0:00:36.3]} 44... Na5 {[%clk 0:00:11.3]} 45. Bc2 {[%clk 0:00:35.5]}
45... c4 {[%clk 0:00:11.2]} 46. Kg6 {[%clk 0:00:35.8]} 46... c3 {[%clk
0:00:10.6]} 47. Kxg7 {[%clk 0:00:36.3]} 47... Nc4 {[%clk 0:00:09.9]} 48. g4
{[%clk 0:00:19.7]} 48... Ne3 {[%clk 0:00:09.8]} 49. Bb1 {[%clk 0:00:18.5]} 49...
Ke7 {[%clk 0:00:10]} 50. Kxh6 {[%clk 0:00:18.4]} 50... c2 {[%clk 0:00:09.8]} 51.
Bxc2 {[%clk 0:00:17.7]} 51... Nxc2 {[%clk 0:00:10.7]} 52. h4 {[%clk 0:00:17.9]}
52... Nd4 {[%clk 0:00:11.1]} 53. Kg7 {[%clk 0:00:10.9]} 53... Ne6+ {[%clk
0:00:10.6]} 54. Kg8 {[%clk 0:00:08.8]} 54... Nxf4 {[%clk 0:00:09.5]} 55. h5
{[%clk 0:00:09.4]} 55... f5 {[%clk 0:00:08.9]} 56. gxf5 {[%clk 0:00:05.2]} 56...
Nxh5 {[%clk 0:00:08.3]} 57. a5 {[%clk 0:00:05.8]} 57... Nf6+ {[%clk 0:00:07.6]}
58. Kg7 {[%clk 0:00:05.5]} 58... Ne8+ {[%clk 0:00:06.4]} 59. Kg6 {[%clk
0:00:05.7]} 59... Nc7 {[%clk 0:00:06.4]} 60. f6+ {[%clk 0:00:05.1]} 60... Kf8
{[%clk 0:00:06.4]} 61. b6 {[%clk 0:00:05.6]} 61... axb6 {[%clk 0:00:06.6]} 62.
axb6 {[%clk 0:00:06.1]} 62... Na6 {[%clk 0:00:06.7]} 63. b7 {[%clk 0:00:06.5]}
63... Nb8 {[%clk 0:00:06.8]} 64. Kf5 {[%clk 0:00:07]} 64... Kf7 {[%clk
0:00:07.4]} 65. Ke5 {[%clk 0:00:07.2]} 65... Nd7+ {[%clk 0:00:06.5]} 66. Kd6
{[%clk 0:00:07.1]} 66... Nb8 {[%clk 0:00:06.8]} 67. Kc7 {[%clk 0:00:07.4]} 67...
Na6+ {[%clk 0:00:06.9]} 68. Kb6 {[%clk 0:00:07.8]} 68... Nb8 {[%clk 0:00:07.1]}
69. Kc7 {[%clk 0:00:08.2]} 69... Na6+ {[%clk 0:00:07.4]} 70. Kb6 {[%clk
0:00:08.1]} 70... Nb8 {[%clk 0:00:07.9]} 71. Ka7 {[%clk 0:00:09]} 71... Nd7
{[%clk 0:00:08.1]} 72. Ka6 {[%clk 0:00:09.2]} 72... Kxf6 {[%clk 0:00:08.5]} 73.
Kb5 {[%clk 0:00:09.7]} 73... Ke7 {[%clk 0:00:08.9]} 74. Kc6 {[%clk 0:00:10.6]}
74... Kd8 {[%clk 0:00:09.2]} 75. Kd6 {[%clk 0:00:11]} 75... Nb8 {[%clk
0:00:09.5]} 76. Kd5 {[%clk 0:00:09.5]} 76... Kc7 {[%clk 0:00:10.4]} 77. Ke5
{[%clk 0:00:09.9]} 77... Kxb7 {[%clk 0:00:11.1]} 1/2-1/2